[Event "Early-Titled-Tuesday-Blitz-February-27-2024"]
[Site "Chess.com"]
[Date "2024.02.27"]
[Round "6"]
[White "Felix-Rose"]
[Black "FARIZA2018"]
[Result "0-1"]
[WhiteElo "2268"]
[BlackElo "2596"]
[TimeControl "180+1"]
[EndTime "9:03:30 PST"]
[Termination "FARIZA2018 won by resignation"]

1. e4 {[%clk 0:03:00.1]} 1... e5 {[%clk 0:02:59.9]} 2. Nf3 {[%clk 0:02:59.8]}
2... Nc6 {[%clk 0:03:00.2]} 3. Bb5 {[%clk 0:02:58.8]} 3... a6 {[%clk 0:03:00.5]}
4. Ba4 {[%clk 0:02:59.1]} 4... Nf6 {[%clk 0:03:00.6]} 5. d3 {[%clk 0:02:58.8]}
5... b5 {[%clk 0:02:57.3]} 6. Bb3 {[%clk 0:02:58.6]} 6... Bc5 {[%clk 0:02:57.6]}
7. c3 {[%clk 0:02:57.3]} 7... d6 {[%clk 0:02:57.2]} 8. Nbd2 {[%clk 0:02:56.7]}
8... O-O {[%clk 0:02:56.7]} 9. h3 {[%clk 0:02:53.5]} 9... Bb6 {[%clk 0:02:51.5]}
10. Nf1 {[%clk 0:02:51.4]} 10... h6 {[%clk 0:02:47.5]} 11. Qe2 {[%clk
0:02:50.2]} 11... d5 {[%clk 0:02:46.6]} 12. g4 {[%clk 0:02:45.4]} 12... Be6
{[%clk 0:02:41.9]} 13. g5 {[%clk 0:02:39.9]} 13... hxg5 {[%clk 0:02:31.9]} 14.
Nxg5 {[%clk 0:02:39.7]} 14... Qd7 {[%clk 0:02:23.9]} 15. Nxe6 {[%clk 0:02:19.1]}
15... fxe6 {[%clk 0:02:19.8]} 16. Be3 {[%clk 0:01:30.1]} 16... d4 {[%clk
0:02:19.7]} 17. Bg5 {[%clk 0:01:19.1]} 17... Na5 {[%clk 0:02:02.3]} 18. Bc2
{[%clk 0:00:57.2]} 18... dxc3 {[%clk 0:01:51.3]} 19. bxc3 {[%clk 0:00:56.9]}
19... Qc6 {[%clk 0:01:51.3]} 20. Qd2 {[%clk 0:00:37.6]} 20... Bxf2+ {[%clk
0:01:36.2]} 21. Kd1 {[%clk 0:00:17.3]} 21... Rad8 {[%clk 0:01:24.7]} 22. Qxf2
{[%clk 0:00:10.6]} 22... Nxe4 {[%clk 0:01:20.1]} 23. Qe3 {[%clk 0:00:08.1]}
23... Nxc3+ {[%clk 0:01:14.7]} 24. Kd2 {[%clk 0:00:07.9]} 24... Nc4+ {[%clk
0:01:14.7]} 25. Kxc3 {[%clk 0:00:07.3]} 25... Nxe3+ {[%clk 0:01:14.7]} 0-1

[Event "Early-Titled-Tuesday-Blitz-February-27-2024"]
[Site "Chess.com"]
[Date "2024.02.27"]
[Round "6"]
[White "MANOJ_MISHRA123"]
[Black "ajedrezsinlimites"]
[Result "0-1"]
[WhiteElo "2252"]
[BlackElo "2562"]
[TimeControl "180+1"]
[EndTime "9:03:34 PST"]
[Termination "ajedrezsinlimites won on time"]

1. d4 {[%clk 0:02:52.6]} 1... Nf6 {[%clk 0:02:57.7]} 2. Nc3 {[%clk 0:02:46.9]}
2... e6 {[%clk 0:02:57.2]} 3. Bf4 {[%clk 0:02:46.3]} 3... d5 {[%clk 0:02:57]} 4.
e3 {[%clk 0:02:46.1]} 4... Bd6 {[%clk 0:02:56.9]} 5. Bg3 {[%clk 0:02:45.1]} 5...
O-O {[%clk 0:02:56.8]} 6. Nf3 {[%clk 0:02:44.8]} 6... c5 {[%clk 0:02:57.2]} 7.
Ne5 {[%clk 0:02:37.2]} 7... a6 {[%clk 0:02:56.3]} 8. a4 {[%clk 0:02:35.5]} 8...
Qc7 {[%clk 0:02:56.5]} 9. f4 {[%clk 0:02:33.5]} 9... Nc6 {[%clk 0:02:56.7]} 10.
Be2 {[%clk 0:02:24]} 10... Rd8 {[%clk 0:02:49.9]} 11. O-O {[%clk 0:02:22.9]}
11... Ne7 {[%clk 0:02:49.8]} 12. Bd3 {[%clk 0:02:13.2]} 12... c4 {[%clk
0:02:48.1]} 13. Be2 {[%clk 0:02:12.7]} 13... Nf5 {[%clk 0:02:48.1]} 14. Bf2
{[%clk 0:02:12.5]} 14... Bb4 {[%clk 0:02:43]} 15. g4 {[%clk 0:02:10.5]} 15...
Nd6 {[%clk 0:02:43.2]} 16. Na2 {[%clk 0:02:05.7]} 16... Ba5 {[%clk 0:02:41.5]}
17. b4 {[%clk 0:01:49.1]} 17... Bb6 {[%clk 0:02:34.1]} 18. Nc3 {[%clk
0:01:35.2]} 18... Nfe4 {[%clk 0:02:33.8]} 19. Be1 {[%clk 0:01:34]} 19... f6
{[%clk 0:02:33.5]} 20. Nf3 {[%clk 0:01:31.3]} 20... Qf7 {[%clk 0:02:32.6]} 21.
a5 {[%clk 0:01:30]} 21... Bc7 {[%clk 0:02:32.6]} 22. Na4 {[%clk 0:01:29.2]}
22... Bd7 {[%clk 0:02:29.3]} 23. Nc5 {[%clk 0:01:28.6]} 23... Kh8 {[%clk
0:02:21.9]} 24. Nd2 {[%clk 0:01:22.6]} 24... Nc3 {[%clk 0:02:16.8]} 25. Nxc4
{[%clk 0:00:49.6]} 25... Nxd1 {[%clk 0:02:15.9]} 26. Nxd6 {[%clk 0:00:49.1]}
26... Bxd6 {[%clk 0:02:15.7]} 27. Bxd1 {[%clk 0:00:44.5]} 27... Bb5 {[%clk
0:02:15.6]} 28. Rf2 {[%clk 0:00:43.9]} 28... Bxc5 {[%clk 0:02:15.5]} 29. bxc5
{[%clk 0:00:42.6]} 29... Qg6 {[%clk 0:02:14]} 30. c3 {[%clk 0:00:38.7]} 30... e5
{[%clk 0:02:13.5]} 31. Bc2 {[%clk 0:00:37.7]} 31... Qe8 {[%clk 0:02:09.7]} 32.
Bd2 {[%clk 0:00:30.6]} 32... e4 {[%clk 0:02:06.6]} 33. g5 {[%clk 0:00:17.3]}
33... fxg5 {[%clk 0:02:06.1]} 34. fxg5 {[%clk 0:00:18.2]} 34... Qg6 {[%clk
0:02:06.4]} 35. Rg2 {[%clk 0:00:17.9]} 35... Rf8 {[%clk 0:02:06.4]} 36. Bd1
{[%clk 0:00:13.7]} 36... Rf7 {[%clk 0:02:05.6]} 37. Bg4 {[%clk 0:00:11.6]} 37...
Raf8 {[%clk 0:02:05.7]} 38. h4 {[%clk 0:00:11.4]} 38... h5 {[%clk 0:02:01.1]}
39. Bh3 {[%clk 0:00:08.1]} 39... Rf3 {[%clk 0:02:00.6]} 40. Kh2 {[%clk
0:00:07.5]} 40... Rxh3+ {[%clk 0:01:59.4]} 41. Kxh3 {[%clk 0:00:06.8]} 41...
Qf5+ {[%clk 0:01:59.7]} 42. Kh2 {[%clk 0:00:06]} 42... Qf3 {[%clk 0:01:59.9]}
43. Rag1 {[%clk 0:00:04.8]} 43... Bf1 {[%clk 0:01:58.6]} 0-1

[Event "Early-Titled-Tuesday-Blitz-February-27-2024"]
[Site "Chess.com"]
[Date "2024.02.27"]
[Round "6"]
[White "ScofieldMichael01"]
[Black "ljuks68"]
[Result "1-0"]
[WhiteElo "2598"]
[BlackElo "2414"]
[TimeControl "180+1"]
[EndTime "9:03:39 PST"]
[Termination "ScofieldMichael01 won on time"]

1. d4 {[%clk 0:03:00.9]} 1... d5 {[%clk 0:02:56.7]} 2. Bf4 {[%clk 0:02:53]} 2...
Nf6 {[%clk 0:02:56.5]} 3. e3 {[%clk 0:02:53.1]} 3... c5 {[%clk 0:02:57]} 4. Nd2
{[%clk 0:02:52.9]} 4... Nc6 {[%clk 0:02:57.6]} 5. c3 {[%clk 0:02:53.2]} 5... Bf5
{[%clk 0:02:54.3]} 6. Ngf3 {[%clk 0:02:51.6]} 6... e6 {[%clk 0:02:54.2]} 7. Be2
{[%clk 0:02:49]} 7... Bd6 {[%clk 0:02:53.8]} 8. Bg3 {[%clk 0:02:49]} 8... O-O
{[%clk 0:02:53.3]} 9. O-O {[%clk 0:02:49.2]} 9... Qe7 {[%clk 0:02:51.9]} 10. Ne5
{[%clk 0:02:47.2]} 10... Bxe5 {[%clk 0:02:42.1]} 11. dxe5 {[%clk 0:02:46.8]}
11... Nd7 {[%clk 0:02:42.1]} 12. Nf3 {[%clk 0:02:37.9]} 12... Be4 {[%clk
0:02:33.2]} 13. Nd2 {[%clk 0:02:35.9]} 13... Ndxe5 {[%clk 0:02:28.1]} 14. Nxe4
{[%clk 0:02:36.3]} 14... dxe4 {[%clk 0:02:28.6]} 15. Qa4 {[%clk 0:02:37]} 15...
f5 {[%clk 0:02:26.2]} 16. Rfd1 {[%clk 0:02:34.6]} 16... Rad8 {[%clk 0:02:21.1]}
17. Qb5 {[%clk 0:02:33.6]} 17... b6 {[%clk 0:02:13.9]} 18. h3 {[%clk 0:02:30.1]}
18... h6 {[%clk 0:02:09]} 19. a4 {[%clk 0:02:20.9]} 19... Rxd1+ {[%clk
0:02:07.5]} 20. Rxd1 {[%clk 0:02:19.9]} 20... Rd8 {[%clk 0:02:07.9]} 21. Rxd8+
{[%clk 0:02:16.3]} 21... Qxd8 {[%clk 0:02:07.3]} 22. a5 {[%clk 0:02:16.6]} 22...
Qd2 {[%clk 0:01:32.2]} 23. axb6 {[%clk 0:02:11.9]} 23... axb6 {[%clk 0:01:31.6]}
24. Bh5 {[%clk 0:01:35.1]} 24... Qd8 {[%clk 0:01:21.3]} 25. Kh2 {[%clk
0:01:26.2]} 25... Kh7 {[%clk 0:00:37.6]} 26. b4 {[%clk 0:01:24.7]} 26... Qd5
{[%clk 0:00:21.1]} 27. Qxb6 {[%clk 0:01:22.2]} 27... cxb4 {[%clk 0:00:21]} 28.
cxb4 {[%clk 0:01:22.8]} 28... Nd3 {[%clk 0:00:18.1]} 29. b5 {[%clk 0:01:18]}
29... Nce5 {[%clk 0:00:15.8]} 30. Qb8 {[%clk 0:01:13.6]} 30... Qc5 {[%clk
0:00:03.7]} 31. b6 {[%clk 0:01:09.8]} 1-0

[Event "Early-Titled-Tuesday-Blitz-February-27-2024"]
[Site "Chess.com"]
[Date "2024.02.27"]
[Round "6"]
[White "nekotyanof"]
[Black "Atousa"]
[Result "1/2-1/2"]
[WhiteElo "2630"]
[BlackElo "2473"]
[TimeControl "180+1"]
[EndTime "9:03:41 PST"]
[Termination "Game drawn by repetition"]

1. e4 {[%clk 0:03:00.5]} 1... c5 {[%clk 0:02:52.2]} 2. Nf3 {[%clk 0:02:59.5]}
2... e6 {[%clk 0:02:52.3]} 3. Nc3 {[%clk 0:02:58.9]} 3... a6 {[%clk 0:02:50.9]}
4. d4 {[%clk 0:02:59.3]} 4... cxd4 {[%clk 0:02:50.9]} 5. Nxd4 {[%clk 0:03:00.2]}
5... Qc7 {[%clk 0:02:51.4]} 6. g3 {[%clk 0:03:00.6]} 6... Bb4 {[%clk 0:02:50.6]}
7. Bd2 {[%clk 0:02:57.9]} 7... Nf6 {[%clk 0:02:49.9]} 8. Bg2 {[%clk 0:02:58]}
8... Nc6 {[%clk 0:02:48.7]} 9. Nxc6 {[%clk 0:02:57.8]} 9... dxc6 {[%clk
0:02:49.6]} 10. O-O {[%clk 0:02:57.9]} 10... O-O {[%clk 0:02:47.9]} 11. Qe2
{[%clk 0:02:57.1]} 11... e5 {[%clk 0:02:47.8]} 12. a3 {[%clk 0:02:46.9]} 12...
Bc5 {[%clk 0:02:43.8]} 13. h3 {[%clk 0:02:45.9]} 13... Be6 {[%clk 0:02:40.8]}
14. Be3 {[%clk 0:02:39.9]} 14... Nd7 {[%clk 0:02:30.5]} 15. b4 {[%clk
0:02:36.9]} 15... Bxe3 {[%clk 0:02:28.8]} 16. Qxe3 {[%clk 0:02:33.4]} 16... b5
{[%clk 0:02:12.4]} 17. f4 {[%clk 0:02:30.9]} 17... c5 {[%clk 0:02:01.4]} 18. Nd5
{[%clk 0:02:26]} 18... Bxd5 {[%clk 0:01:55.4]} 19. exd5 {[%clk 0:02:22.9]} 19...
exf4 {[%clk 0:01:55.7]} 20. Rxf4 {[%clk 0:02:17.4]} 20... cxb4 {[%clk
0:01:55.8]} 21. d6 {[%clk 0:02:15.8]} 21... Qxd6 {[%clk 0:01:53.7]} 22. Bxa8
{[%clk 0:02:16.1]} 22... Rxa8 {[%clk 0:01:53.3]} 23. axb4 {[%clk 0:02:16.2]}
23... Nf6 {[%clk 0:01:49.2]} 24. Re1 {[%clk 0:02:13.7]} 24... h6 {[%clk
0:01:35.5]} 25. Qc5 {[%clk 0:02:13.7]} 25... Qd2 {[%clk 0:01:27.3]} 26. Ref1
{[%clk 0:02:08.8]} 26... Re8 {[%clk 0:01:21.5]} 27. Qc6 {[%clk 0:01:55]} 27...
Re2 {[%clk 0:01:13.4]} 28. R4f2 {[%clk 0:01:47.6]} 28... Qe3 {[%clk 0:00:57.2]}
29. Qc8+ {[%clk 0:01:32.9]} 29... Kh7 {[%clk 0:00:34]} 30. Qf5+ {[%clk
0:01:32.9]} 30... Kg8 {[%clk 0:00:34.6]} 31. Kg2 {[%clk 0:01:17]} 31... Ne4
{[%clk 0:00:21.4]} 32. Rxe2 {[%clk 0:01:14.7]} 32... Qxe2+ {[%clk 0:00:21.2]}
33. Kg1 {[%clk 0:01:09.9]} 33... Qe3+ {[%clk 0:00:17.1]} 34. Kh2 {[%clk
0:01:09.3]} 34... Qe2+ {[%clk 0:00:09.2]} 35. Kg1 {[%clk 0:01:08.4]} 35... Qe3+
{[%clk 0:00:09]} 36. Kh2 {[%clk 0:01:08.6]} 36... Qe2+ {[%clk 0:00:09.4]} 37.
Kg1 {[%clk 0:01:08]} 1/2-1/2

[Event "Early-Titled-Tuesday-Blitz-February-27-2024"]
[Site "Chess.com"]
[Date "2024.02.27"]
[Round "6"]
[White "AlexPapasimakopoulos"]
[Black "Honiex"]
[Result "0-1"]
[WhiteElo "2733"]
[BlackElo "2563"]
[TimeControl "180+1"]
[EndTime "9:03:42 PST"]
[Termination "Honiex won by resignation"]

1. d4 {[%clk 0:03:00.9]} 1... Nc6 {[%clk 0:02:56.6]} 2. Nf3 {[%clk 0:02:57.3]}
2... d5 {[%clk 0:02:56.4]} 3. c4 {[%clk 0:02:57.5]} 3... Bg4 {[%clk 0:02:54.2]}
4. cxd5 {[%clk 0:02:56.8]} 4... Bxf3 {[%clk 0:02:54.5]} 5. dxc6 {[%clk
0:02:54.8]} 5... Bxc6 {[%clk 0:02:52.7]} 6. Nc3 {[%clk 0:02:55.1]} 6... Nf6
{[%clk 0:02:50.3]} 7. Qd3 {[%clk 0:02:53.4]} 7... Qd7 {[%clk 0:02:35.4]} 8. e4
{[%clk 0:02:53.4]} 8... e6 {[%clk 0:02:25.6]} 9. Be2 {[%clk 0:02:48.1]} 9...
O-O-O {[%clk 0:02:24.8]} 10. Be3 {[%clk 0:02:48.2]} 10... Bb4 {[%clk 0:02:18.8]}
11. f3 {[%clk 0:02:48]} 11... h5 {[%clk 0:01:43.7]} 12. a3 {[%clk 0:02:45.6]}
12... Bc5 {[%clk 0:01:35.8]} 13. Rd1 {[%clk 0:02:39.4]} 13... Bb6 {[%clk
0:01:35.5]} 14. b4 {[%clk 0:02:39.3]} 14... a6 {[%clk 0:01:35.3]} 15. O-O {[%clk
0:02:37.1]} 15... h4 {[%clk 0:01:34.9]} 16. Rd2 {[%clk 0:02:25]} 16... Rhg8
{[%clk 0:01:28.4]} 17. Ra1 {[%clk 0:02:22.4]} 17... Bb5 {[%clk 0:00:54.9]} 18.
Nxb5 {[%clk 0:02:20.1]} 18... axb5 {[%clk 0:00:55.8]} 19. Qxb5 {[%clk
0:02:14.5]} 19... Qxb5 {[%clk 0:00:53.5]} 20. Bxb5 {[%clk 0:02:15.4]} 20... e5
{[%clk 0:00:52.8]} 21. Rad1 {[%clk 0:02:15.4]} 21... exd4 {[%clk 0:00:50.5]} 22.
Bxd4 {[%clk 0:02:16.3]} 22... Rxd4 {[%clk 0:00:49.8]} 23. Rxd4 {[%clk
0:02:17.2]} 23... Rd8 {[%clk 0:00:49.8]} 24. Kf1 {[%clk 0:02:13]} 24... Rxd4
{[%clk 0:00:47.3]} 25. Rxd4 {[%clk 0:02:12.6]} 25... Bxd4 {[%clk 0:00:47.1]} 26.
Bc4 {[%clk 0:02:11.1]} 26... Be5 {[%clk 0:00:37.9]} 27. Kg1 {[%clk 0:02:10.3]}
27... Nh5 {[%clk 0:00:32.1]} 28. Bxf7 {[%clk 0:02:09.6]} 28... Nf4 {[%clk
0:00:32.5]} 29. Bc4 {[%clk 0:02:04.6]} 29... Nh5 {[%clk 0:00:18.2]} 30. Be6+
{[%clk 0:02:03.2]} 30... Kd8 {[%clk 0:00:17.5]} 31. Bf7 {[%clk 0:02:03.8]} 31...
Nf6 {[%clk 0:00:17.2]} 32. Bc4 {[%clk 0:02:03.9]} 32... g5 {[%clk 0:00:17.3]}
33. a4 {[%clk 0:02:03]} 33... b6 {[%clk 0:00:17.3]} 34. a5 {[%clk 0:02:02.3]}
34... bxa5 {[%clk 0:00:17.4]} 35. bxa5 {[%clk 0:02:03.2]} 35... c5 {[%clk
0:00:17.6]} 36. Kh1 {[%clk 0:02:01.7]} 36... Kc7 {[%clk 0:00:18.2]} 37. Kg1
{[%clk 0:02:02.1]} 37... Nd7 {[%clk 0:00:17.3]} 38. g3 {[%clk 0:01:55.5]} 38...
hxg3 {[%clk 0:00:16.8]} 39. hxg3 {[%clk 0:01:56.4]} 39... Bxg3 {[%clk
0:00:17.2]} 40. Kg2 {[%clk 0:01:57.1]} 40... Bf4 {[%clk 0:00:17.3]} 41. Kh3
{[%clk 0:01:57.5]} 41... Ne5 {[%clk 0:00:15.4]} 42. Be2 {[%clk 0:01:57.9]} 42...
c4 {[%clk 0:00:15.7]} 43. Kg2 {[%clk 0:01:58.4]} 43... c3 {[%clk 0:00:15.7]} 44.
Bd1 {[%clk 0:01:58.8]} 44... Kc6 {[%clk 0:00:15.2]} 45. Ba4+ {[%clk 0:01:51.8]}
45... Kc5 {[%clk 0:00:15.8]} 46. Kf2 {[%clk 0:01:52.2]} 46... Nd3+ {[%clk
0:00:14.8]} 47. Ke2 {[%clk 0:01:50.7]} 47... Nb4 {[%clk 0:00:15.2]} 48. Kd1
{[%clk 0:01:50.1]} 48... Kd4 {[%clk 0:00:15.7]} 49. Bb3 {[%clk 0:01:42]} 49...
Ke3 {[%clk 0:00:15]} 50. Bd5 {[%clk 0:01:39.1]} 50... c2+ {[%clk 0:00:13]} 0-1

[Event "Early-Titled-Tuesday-Blitz-February-27-2024"]
[Site "Chess.com"]
[Date "2024.02.27"]
[Round "6"]
[White "AlexTruskavetsky"]
[Black "Matols"]
[Result "1-0"]
[WhiteElo "2747"]
[BlackElo "2407"]
[TimeControl "180+1"]
[EndTime "9:03:46 PST"]
[Termination "AlexTruskavetsky won by resignation"]

1. d4 {[%clk 0:02:59.9]} 1... d5 {[%clk 0:02:59.5]} 2. c4 {[%clk 0:02:57.4]}
2... Nf6 {[%clk 0:02:59.8]} 3. cxd5 {[%clk 0:02:57.6]} 3... Nxd5 {[%clk
0:03:00.7]} 4. e4 {[%clk 0:02:58]} 4... Nb6 {[%clk 0:02:59.8]} 5. Nc3 {[%clk
0:02:57.9]} 5... e6 {[%clk 0:02:59.1]} 6. Be3 {[%clk 0:02:58.6]} 6... N8d7
{[%clk 0:02:57.7]} 7. Nf3 {[%clk 0:02:58.7]} 7... Be7 {[%clk 0:02:55.6]} 8. Bd3
{[%clk 0:02:55.4]} 8... O-O {[%clk 0:02:55]} 9. Qe2 {[%clk 0:02:55.7]} 9... c5
{[%clk 0:02:50.9]} 10. Rd1 {[%clk 0:02:55.8]} 10... cxd4 {[%clk 0:02:27]} 11.
Bxd4 {[%clk 0:02:55.2]} 11... Bc5 {[%clk 0:02:17.8]} 12. Be3 {[%clk 0:02:42.2]}
12... Bxe3 {[%clk 0:02:15.8]} 13. Qxe3 {[%clk 0:02:43.1]} 13... Qe7 {[%clk
0:02:15.2]} 14. O-O {[%clk 0:02:43.7]} 14... Nc5 {[%clk 0:02:11]} 15. Bb1 {[%clk
0:02:43.8]} 15... Bd7 {[%clk 0:02:08.6]} 16. e5 {[%clk 0:02:44.2]} 16... Rfd8
{[%clk 0:01:49.3]} 17. Rd6 {[%clk 0:02:42.3]} 17... Nc4 {[%clk 0:01:47.7]} 18.
Qxc5 {[%clk 0:02:42.5]} 18... Rac8 {[%clk 0:01:40.2]} 19. Qd4 {[%clk 0:02:31]}
19... Nxd6 {[%clk 0:01:39.4]} 20. exd6 {[%clk 0:02:31.9]} 20... Qf6 {[%clk
0:01:33.2]} 21. Ne5 {[%clk 0:02:28.6]} 21... Be8 {[%clk 0:01:21.3]} 22. Rd1
{[%clk 0:02:27.3]} 22... Bd7 {[%clk 0:01:11.8]} 23. Ne4 {[%clk 0:02:22.7]} 23...
Qh4 {[%clk 0:01:08.3]} 24. b4 {[%clk 0:01:19.7]} 24... Qh5 {[%clk 0:01:00.6]}
25. f3 {[%clk 0:01:14.2]} 25... Ba4 {[%clk 0:00:51.3]} 26. Re1 {[%clk
0:01:10.9]} 26... Qh4 {[%clk 0:00:41.8]} 27. g3 {[%clk 0:01:08.6]} 27... Qh3
{[%clk 0:00:38.3]} 28. Nxf7 {[%clk 0:01:06.1]} 28... Rf8 {[%clk 0:00:26.5]} 29.
d7 {[%clk 0:01:04.2]} 29... Rb8 {[%clk 0:00:18]} 30. Neg5 {[%clk 0:01:02.9]}
30... Qh5 {[%clk 0:00:13.7]} 31. Bxh7+ {[%clk 0:01:02.6]} 31... Qxh7 {[%clk
0:00:09.7]} 32. Nxh7 {[%clk 0:01:03.5]} 32... Kxh7 {[%clk 0:00:10.3]} 33. d8=Q
{[%clk 0:01:03.9]} 1-0

[Event "Early-Titled-Tuesday-Blitz-February-27-2024"]
[Site "Chess.com"]
[Date "2024.02.27"]
[Round "6"]
[White "santosalberto1987"]
[Black "Happy1712Drummer"]
[Result "1-0"]
[WhiteElo "2555"]
[BlackElo "2390"]
[TimeControl "180+1"]
[EndTime "9:03:51 PST"]
[Termination "santosalberto1987 won on time"]

1. e4 {[%clk 0:03:00.9]} 1... c6 {[%clk 0:03:00.3]} 2. c4 {[%clk 0:03:01]} 2...
d5 {[%clk 0:03:00.1]} 3. exd5 {[%clk 0:03:01.9]} 3... cxd5 {[%clk 0:03:00.6]} 4.
cxd5 {[%clk 0:03:02.5]} 4... Nf6 {[%clk 0:03:00.3]} 5. Qa4+ {[%clk 0:03:02]}
5... Nbd7 {[%clk 0:03:00.6]} 6. Bc4 {[%clk 0:03:02.1]} 6... g6 {[%clk
0:03:00.8]} 7. Nc3 {[%clk 0:03:02.4]} 7... Bg7 {[%clk 0:03:00.8]} 8. Nf3 {[%clk
0:03:03.1]} 8... O-O {[%clk 0:03:01]} 9. d3 {[%clk 0:03:03.7]} 9... Nb6 {[%clk
0:03:01.5]} 10. Qb3 {[%clk 0:03:03.8]} 10... Bf5 {[%clk 0:03:01.6]} 11. O-O
{[%clk 0:03:03.2]} 11... Rc8 {[%clk 0:02:58]} 12. Rd1 {[%clk 0:03:03.1]} 12...
Bg4 {[%clk 0:02:52.4]} 13. Be3 {[%clk 0:03:01.5]} 13... Bxf3 {[%clk 0:02:49.7]}
14. gxf3 {[%clk 0:03:02.4]} 14... Qd7 {[%clk 0:02:15.9]} 15. Bxb6 {[%clk
0:02:54.7]} 15... axb6 {[%clk 0:02:16.8]} 16. Qxb6 {[%clk 0:02:54.9]} 16... Qh3
{[%clk 0:02:16.9]} 17. Qe3 {[%clk 0:02:51.8]} 17... Rfd8 {[%clk 0:02:09.5]} 18.
f4 {[%clk 0:02:46.5]} 18... Qh5 {[%clk 0:02:02.6]} 19. Qg3 {[%clk 0:02:43.4]}
19... Qf5 {[%clk 0:01:47.4]} 20. Re1 {[%clk 0:02:41.6]} 20... Nh5 {[%clk
0:01:47]} 21. Qg5 {[%clk 0:02:41]} 21... Qh3 {[%clk 0:01:33.4]} 22. Ne4 {[%clk
0:02:40.8]} 22... b5 {[%clk 0:01:28.4]} 23. Bb3 {[%clk 0:02:39.2]} 23... Bxb2
{[%clk 0:01:26.1]} 24. Rab1 {[%clk 0:02:37.2]} 24... Bf6 {[%clk 0:01:22.4]} 25.
Nxf6+ {[%clk 0:02:36.9]} 25... exf6 {[%clk 0:01:23.2]} 26. Qg2 {[%clk
0:02:15.5]} 26... Qxg2+ {[%clk 0:01:14.4]} 27. Kxg2 {[%clk 0:02:16.4]} 27...
Nxf4+ {[%clk 0:01:14.9]} 28. Kf3 {[%clk 0:02:16.6]} 28... Nxd5 {[%clk
0:01:14.7]} 29. Rbc1 {[%clk 0:02:14]} 29... Nb4 {[%clk 0:01:03.7]} 30. Rxc8
{[%clk 0:02:10.5]} 30... Rxc8 {[%clk 0:01:03.5]} 31. d4 {[%clk 0:02:00.7]} 31...
Rc3+ {[%clk 0:00:53.3]} 32. Re3 {[%clk 0:01:51.4]} 32... Rxe3+ {[%clk
0:00:33.8]} 33. Kxe3 {[%clk 0:01:52.3]} 33... Kf8 {[%clk 0:00:33.6]} 34. a3
{[%clk 0:01:48.9]} 34... Nc6 {[%clk 0:00:29.7]} 35. d5 {[%clk 0:01:49]} 35...
Ne5 {[%clk 0:00:27]} 36. Kd4 {[%clk 0:01:48.8]} 36... Ng4 {[%clk 0:00:20.2]} 37.
Kc5 {[%clk 0:01:45.8]} 37... Nxf2 {[%clk 0:00:18.1]} 38. Kxb5 {[%clk 0:01:41.9]}
38... Ne4 {[%clk 0:00:18.3]} 39. a4 {[%clk 0:01:39.8]} 39... f5 {[%clk
0:00:18.1]} 40. a5 {[%clk 0:01:39.7]} 40... Nd6+ {[%clk 0:00:15.8]} 41. Kc6
{[%clk 0:01:39.3]} 41... Nc8 {[%clk 0:00:13.8]} 42. d6 {[%clk 0:01:37.8]} 42...
f4 {[%clk 0:00:09.6]} 43. d7 {[%clk 0:01:31.9]} 43... Ne7+ {[%clk 0:00:01.6]}
44. Kb7 {[%clk 0:01:30.3]} 1-0

[Event "Early-Titled-Tuesday-Blitz-February-27-2024"]
[Site "Chess.com"]
[Date "2024.02.27"]
[Round "6"]
[White "AlexeiShirov"]
[Black "SlavenPastar"]
[Result "1-0"]
[WhiteElo "2861"]
[BlackElo "2619"]
[TimeControl "180+1"]
[EndTime "9:03:53 PST"]
[Termination "AlexeiShirov won by resignation"]

1. e4 {[%clk 0:03:00.9]} 1... b6 {[%clk 0:02:57.5]} 2. d4 {[%clk 0:03:00.2]}
2... Bb7 {[%clk 0:02:57.7]} 3. Bd3 {[%clk 0:03:00]} 3... Nf6 {[%clk 0:02:57.8]}
4. Qe2 {[%clk 0:02:53.9]} 4... e6 {[%clk 0:02:58.1]} 5. f4 {[%clk 0:02:52.5]}
5... d5 {[%clk 0:02:57.6]} 6. e5 {[%clk 0:02:48.7]} 6... Ne4 {[%clk 0:02:57.6]}
7. Nf3 {[%clk 0:02:48.7]} 7... g6 {[%clk 0:02:37.5]} 8. Nbd2 {[%clk 0:02:44.8]}
8... Nxd2 {[%clk 0:02:37.2]} 9. Bxd2 {[%clk 0:02:44.3]} 9... h5 {[%clk
0:02:37.4]} 10. Ng5 {[%clk 0:02:41.6]} 10... Qd7 {[%clk 0:02:28.9]} 11. O-O
{[%clk 0:02:35.8]} 11... a5 {[%clk 0:02:26.3]} 12. b3 {[%clk 0:02:13.3]} 12...
a4 {[%clk 0:02:24.1]} 13. Rae1 {[%clk 0:02:11.2]} 13... axb3 {[%clk 0:02:21.1]}
14. axb3 {[%clk 0:02:10.3]} 14... Ba6 {[%clk 0:02:12.8]} 15. c4 {[%clk
0:02:09.3]} 15... Nc6 {[%clk 0:02:09.9]} 16. Be3 {[%clk 0:01:51.6]} 16... Nb4
{[%clk 0:02:06.2]} 17. Bb1 {[%clk 0:01:48.5]} 17... c5 {[%clk 0:01:48.4]} 18.
Qf2 {[%clk 0:01:39.1]} 18... dxc4 {[%clk 0:01:42.5]} 19. f5 {[%clk 0:01:38.3]}
19... gxf5 {[%clk 0:01:34.3]} 20. Bxf5 {[%clk 0:01:35.6]} 20... cxd4 {[%clk
0:01:15.4]} 21. Bxd4 {[%clk 0:01:34.3]} 21... Qxd4 {[%clk 0:00:39.8]} 22. Qxd4
{[%clk 0:01:32.8]} 22... Bc5 {[%clk 0:00:39.9]} 23. Nxe6 {[%clk 0:01:26.8]}
23... Bxd4+ {[%clk 0:00:32.4]} 24. Nxd4 {[%clk 0:01:26.8]} 24... cxb3 {[%clk
0:00:28.3]} 25. Rf3 {[%clk 0:01:23.3]} 25... Nc2 {[%clk 0:00:22.2]} 26. Nxc2
{[%clk 0:01:19.6]} 26... bxc2 {[%clk 0:00:23.1]} 27. e6 {[%clk 0:01:15.4]} 27...
Rd8 {[%clk 0:00:15.2]} 28. Bxc2 {[%clk 0:01:10.8]} 28... fxe6 {[%clk 0:00:14]}
29. Rxe6+ {[%clk 0:01:10.4]} 29... Kd7 {[%clk 0:00:14.4]} 30. Rxb6 {[%clk
0:01:10.4]} 30... Bc4 {[%clk 0:00:14.3]} 31. Rc3 {[%clk 0:01:02]} 31... Be6
{[%clk 0:00:13.3]} 32. Ba4+ {[%clk 0:00:59.8]} 32... Ke7 {[%clk 0:00:12.4]} 33.
Rc7+ {[%clk 0:00:59]} 33... Bd7 {[%clk 0:00:09.6]} 34. Rbb7 {[%clk 0:00:58.1]}
1-0